fUST/lending_fUST_20240612
["ID","MTS","AMOUNT","RATE_DAILY","PERIOD"]
[329229824,1718191853545,-500.46600613,0.00016438,2]
[329229826,1718191853557,-805.35,0.00016438,2]
[329229827,1718191853583,-500.0,0.00016438,2]
[329229829,1718191853598,-500.0,0.00016438,2]
[329229832,1718191853619,-500.0,0.00016438,2]
[329229833,1718191853632,-802.49,0.00016438,2]
[329229836,1718191853648,-500.0,0.00016438,2]
[329229838,1718191853665,-500.0,0.00016438,2]
[329229840,1718191853680,-500.0,0.00016438,2]
[329229843,1718191853704,-500.0,0.00016438,2]
[329229844,1718191853715,-500.0,0.00016438,2]
[329229846,1718191853732,-503.39915285,0.00016438,2]
[329229847,1718191853748,-500.0,0.00016438,2]
[329229850,1718191853764,-500.0,0.00016438,2]
[329229851,1718191853782,-500.0,0.00016438,2]
[329229853,1718191853802,-500.0,0.00016438,2]
[329229855,1718191853814,-587.33,0.00016438,2]
[329229857,1718191853828,-502.38592744,0.00016438,2]
[329229859,1718191853849,-500.0,0.00016438,2]
[329229861,1718191853862,-160.85800074,0.00016438,2]
[329229862,1718191853876,-500.0,0.00016438,2]
[329229864,1718191853889,-502.58906716,0.00016438,2]
[329229866,1718191853907,-500.0,0.00016438,2]
[329229869,1718191853925,-500.0,0.00016438,2]
[329229870,1718191853945,-501.57776045,0.00016438,2]
[329229872,1718191853962,-500.0,0.00016438,2]
[329229875,1718191853980,-500.0,0.00016438,2]
[329229877,1718191854006,-500.0,0.00016438,2]
[329229878,1718191854020,-500.0,0.00016438,2]
[329229880,1718191854039,-500.0,0.00016438,2]
[329229882,1718191854059,-500.0,0.00016438,2]
[329229884,1718191854085,-500.0,0.00016438,2]
[329229885,1718191854099,-500.0,0.00016438,2]
[329229887,1718191854116,-4160.92,0.00016438,2]
[329229889,1718191854129,-507.74603429,0.00016438,2]
[329229891,1718191854156,-500.0,0.00016438,2]
[329229893,1718191854176,-500.46782935,0.00016438,2]
[329229895,1718191854193,-500.0,0.00016438,2]
[329229897,1718191854216,-1287.22,0.00016438,2]
[329229899,1718191854231,-500.0,0.00016438,2]
[329229901,1718191854249,-500.0,0.00016438,2]
[329229903,1718191854266,-500.0,0.00016438,2]
[329229905,1718191854277,-500.0,0.00016438,2]
[329229907,1718191854290,-500.0,0.00016438,2]
[329229909,1718191854303,-504.93139688,0.00016438,2]
[329229911,1718191854316,-500.0,0.00016438,2]
[329229913,1718191854331,-500.0,0.00016438,2]
[329229915,1718191854367,-500.0,0.00016438,2]
[329229917,1718191854387,-500.0,0.00016438,2]
[329229919,1718191854400,-500.0,0.00016438,2]
[329229921,1718191854416,-500.0,0.00016438,2]
[329229923,1718191854429,-501.11288431,0.00016438,2]
[329229925,1718191854442,-18453.57,0.00016438,2]
[329229927,1718191854458,-532.86,0.00016438,2]
[329229929,1718191854469,-500.0,0.00016438,2]
[329229931,1718191854481,-500.0,0.00016438,2]
[329229933,1718191854494,-500.0,0.00016438,2]
[329229935,1718191854507,-500.0,0.00016438,2]
[329229937,1718191854520,-500.0,0.00016438,2]
[329229939,1718191854532,-500.0,0.00016438,2]
[329229941,1718191854545,-500.0,0.00016438,2]
[329229943,1718191854565,-500.0,0.00016438,2]
[329229945,1718191854577,-500.0,0.00016438,2]
[329229947,1718191854589,-1006.72,0.00016438,2]
[329229949,1718191854600,-505.04818177,0.00016438,2]
[329229950,1718191854613,-500.0,0.00016438,2]
[329229953,1718191854626,-500.0,0.00016438,2]
[329229955,1718191854639,-12660.69,0.00016438,2]
[329229957,1718191854653,-500.0,0.00016438,2]
[329229959,1718191854665,-520.70465805,0.00016438,2]
[329229961,1718191854677,-500.0,0.00016438,2]
[329229963,1718191854689,-500.0,0.00016438,2]
[329229965,1718191854700,-503.10150568,0.00016438,2]
[329229966,1718191854712,-500.0,0.00016438,2]
[329229967,1718191854729,-500.0,0.00016438,2]
[329229968,1718191854740,-501.31342103,0.00016438,2]
[329229969,1718191854760,-500.0,0.00016438,2]
[329229970,1718191854771,-500.0,0.00016438,2]
[329229971,1718191854782,-510.89382712,0.00016438,2]
[329229972,1718191854793,-500.0,0.00016438,2]
[329229973,1718191854807,-3929.81,0.00016438,2]
[329229974,1718191854818,-500.0,0.00016438,2]
[329229975,1718191854829,-4115.96,0.00016438,2]
[329229976,1718191854843,-503.2945334,0.00016438,2]
[329229977,1718191854854,-170.00001,0.00016438,2]
[329229978,1718191854868,-500.0,0.00016438,2]
[329229979,1718191854882,-500.0,0.00016438,2]
[329229980,1718191854896,-500.0,0.00016438,2]
[329229982,1718191854919,-500.0,0.00016438,2]
[329229983,1718191854934,-500.0,0.00016438,2]
[329229985,1718191854956,-500.0,0.00016438,2]
[329229986,1718191854972,-500.0,0.00016438,2]
[329229987,1718191854986,-500.0,0.00016438,2]
[329229988,1718191855005,-495.71,0.00016438,2]
[329229990,1718191855028,-500.0,0.00016438,2]
[329229991,1718191855046,-500.0,0.00016438,2]
[329229992,1718191855061,-500.0,0.00016438,2]
[329229993,1718191855083,-501.93232064,0.00016438,2]
[329229994,1718191855095,-500.0,0.00016438,2]
[329229995,1718191855116,-500.0,0.00016438,2]
[329229996,1718191855144,-500.0,0.00016438,2]
[329229998,1718191855163,-500.0,0.00016438,2]
[329229999,1718191855177,-502.681243,0.00016438,2]
[329230001,1718191855197,-500.1988199,0.00016438,2]
[329230003,1718191855210,-500.0,0.00016438,2]
[329230004,1718191855228,-500.0,0.00016438,2]
[329230005,1718191855241,-500.0,0.00016438,2]
[329230007,1718191855256,-500.0,0.00016438,2]
[329230008,1718191855268,-500.0,0.00016438,2]
[329230010,1718191855280,-500.0,0.00016438,2]
[329230012,1718191855293,-500.0,0.00016438,2]
[329230014,1718191855311,-500.0,0.00016438,2]
[329230016,1718191855324,-500.0,0.00016438,2]
[329230018,1718191855338,-500.0,0.00016438,2]
[329230020,1718191855391,-500.0,0.00016438,2]
[329230022,1718191855404,-500.0,0.00016438,2]
[329230024,1718191855416,-500.0,0.00016438,2]
[329230026,1718191855433,-500.0,0.00016438,2]
[329230028,1718191855445,-500.0,0.00016438,2]
[329230030,1718191855459,-508.12188544,0.00016438,2]
[329230032,1718191855471,-500.0,0.00016438,2]
[329230033,1718191855482,-500.0,0.00016438,2]
[329230035,1718191855492,-502.81665185,0.00016438,2]
[329230037,1718191855503,-520.28513286,0.00016438,2]
[329230039,1718191855516,-500.0,0.00016438,2]
[329230041,1718191855529,-155.01085076,0.000165,2]
[329230043,1718191855542,-1180.1,0.000165,2]
[329230045,1718191855554,-207.0,0.000165,2]
[329230047,1718191855568,-1180.1,0.00016657,2]
[329230049,1718191855582,-207.0,0.00016657,2]
[329230051,1718191855600,-500.0,0.00016711,2]
[329230053,1718191855614,-500.0,0.00016711,2]
[329230055,1718191855629,-2035.38,0.00016711,2]
[329230057,1718191855644,-2035.38,0.00016711,2]
[329230059,1718191855655,-543.46180541,0.00016711,2]
[329230061,1718191855666,-500.0,0.00016711,2]
[329230063,1718191855678,-500.0,0.00016711,2]
[329230065,1718191855689,-500.0,0.00016712,2]
[329230067,1718191855701,-500.0,0.00016712,2]
[329230069,1718191855721,-500.0,0.00016712,2]
[329230071,1718191855732,-278.7,0.00016712,2]
[329230073,1718191855742,-521.32724151,0.00016712,2]
[329230075,1718191855753,-500.0,0.00016712,2]
[329230077,1718191855764,-500.0,0.00016712,2]
[329230079,1718191855776,-500.0,0.00016712,2]
[329230081,1718191855786,-500.0,0.00016712,2]
[329230083,1718191855798,-500.0,0.00016712,2]
[329230085,1718191855808,-500.0,0.00016712,2]
[329230087,1718191855820,-500.0,0.00016712,2]
[329230089,1718191855830,-500.0,0.00016712,2]
[329230091,1718191855841,-539.25,0.00016712,2]
[329230093,1718191855851,-500.0,0.00016712,2]
[329230095,1718191855861,-500.0,0.00016712,2]
[329230097,1718191855872,-500.0,0.00016712,2]
[329230099,1718191855883,-500.0,0.00016712,2]
[329230101,1718191855895,-500.0,0.00016712,2]
[329230103,1718191855906,-500.0,0.00016712,2]
[329230104,1718191855916,-500.0,0.00016712,2]
[329230106,1718191855927,-500.0,0.00016712,2]
[329230108,1718191855938,-500.0,0.00016712,2]
[329230110,1718191855949,-500.0,0.00016712,2]
[329230112,1718191855960,-500.0,0.00016712,2]
[329230114,1718191855971,-500.0,0.00016712,2]
[329230116,1718191855983,-500.0,0.00016712,2]
[329230118,1718191855994,-500.0,0.00016712,2]
[329230120,1718191856006,-696.2,0.00016712,2]
[329230122,1718191856017,-500.0,0.00016712,2]
[329230124,1718191856028,-449.0730593,0.00016712,2]
[329230126,1718191856039,-500.0,0.00016712,2]
[329230128,1718191856049,-500.0,0.00016712,2]
[329230130,1718191856062,-500.0,0.00016712,2]
[329230132,1718191856073,-500.0,0.00016712,2]
[329230134,1718191856084,-500.0,0.00016712,2]
[329230136,1718191856096,-500.0,0.00016712,2]
[329230137,1718191856106,-504.93859245,0.00016712,2]
[329230139,1718191856117,-500.0,0.00016712,2]
[329230140,1718191856128,-500.0,0.00016712,2]
[329230142,1718191856140,-500.0,0.00016712,2]
[329230144,1718191856154,-511.06814897,0.00016712,2]
[329230145,1718191856166,-505.60901484,0.00016712,2]
[329230146,1718191856178,-250.0,0.00016712,2]
[329230147,1718191856190,-537.0375733,0.00016712,2]
[329230148,1718191856202,-500.0,0.00016712,4]
[329230149,1718191856213,-791.15,0.00016712,2]
[329230150,1718191856225,-385.07062156,0.00016712,2]
[329230151,1718191856239,-500.0,0.00016712,2]
[329230152,1718191856250,-500.0,0.00016712,2]
[329230153,1718191856260,-500.0,0.00016712,2]
[329230154,1718191856272,-1958.31,0.00016712,2]
[329230155,1718191856284,-500.0,0.00016712,2]
[329230156,1718191856296,-500.0,0.00016712,2]
[329230157,1718191856307,-7070.51,0.00016712,2]
[329230158,1718191856318,-500.0,0.00016712,2]
[329230159,1718191856331,-500.0,0.00016712,2]
[329230160,1718191856345,-501.29929914,0.00016712,2]
[329230161,1718191856378,-500.0,0.00016712,2]
[329230162,1718191856389,-500.0,0.00016712,2]
[329230164,1718191856401,-1734.34,0.00016712,2]
[329230166,1718191856411,-500.0,0.00016712,2]
[329230167,1718191856422,-500.0,0.00016712,2]
[329230169,1718191856433,-500.0,0.00016712,2]
[329230171,1718191856443,-500.0,0.00016712,2]
[329230173,1718191856454,-500.0,0.00016712,2]
[329230175,1718191856465,-805.35,0.00016712,2]
[329230177,1718191856477,-364.38749767,0.00016712,2]
[329230179,1718191856487,-802.49,0.00016712,2]
[329230181,1718191856498,-500.0,0.00016712,2]
[329230183,1718191856508,-500.0,0.00016712,2]
[329230185,1718191856519,-504.26620568,0.00016712,2]
[329230187,1718191856530,-500.0,0.00016712,2]
[329230189,1718191856542,-587.33,0.00016712,2]
[329230191,1718191856553,-500.0,0.00016712,2]
[329230193,1718191856565,-575.45010021,0.00016712,2]
[329230195,1718191856577,-500.0,0.00016712,2]
[329230196,1718191856587,-500.0,0.00016712,2]
[329230197,1718191856598,-500.0,0.00016712,2]
[329230198,1718191856610,-439.67644935,0.00016712,2]
[329230199,1718191856620,-500.0,0.00016712,2]
[329230200,1718191856631,-4160.92,0.00016712,2]
[329230202,1718191856641,-500.0,0.00016712,2]
[329230205,1718191856653,-500.0,0.00016712,2]
[329230206,1718191856664,-1287.22,0.00016712,2]
[329230208,1718191856674,-314.30164534,0.00016712,2]
[329230211,1718191856685,-500.0,0.00016712,2]
[329230213,1718191856696,-500.0,0.00016712,2]
[329230215,1718191856707,-500.0,0.00016712,2]
[329230216,1718191856717,-500.0,0.00016712,2]
[329230219,1718191856727,-18453.57,0.00016712,2]
[329230221,1718191856738,-532.86,0.00016712,2]
[329230223,1718191856749,-502.93715686,0.00016712,2]
[329230224,1718191856759,-500.0,0.00016712,2]
[329230226,1718191856769,-500.0,0.00016712,2]
[329230229,1718191856780,-500.0,0.00016712,2]
[329230231,1718191856791,-500.0,0.00016712,2]
[329230233,1718191856802,-500.0,0.00016712,2]
[329230234,1718191856813,-508.48960307,0.00016712,2]
[329230237,1718191856823,-1006.72,0.00016712,2]
[329230238,1718191856834,-12660.69,0.00016712,2]
[329230240,1718191856845,-500.0,0.00016712,2]
[329230242,1718191856856,-500.0,0.00016712,2]
[329230245,1718191856867,-500.0,0.00016712,2]
[329230246,1718191856878,-3929.81,0.00016712,2]
[329230248,1718191856889,-4115.96,0.00016712,2]
[329230250,1718191856899,-500.0,0.00016712,2]
[329230252,1718191856910,-500.0,0.00016712,2]
[329230254,1718191856921,-500.0,0.00016712,2]
[329230257,1718191856934,-500.0,0.00016712,2]
[329230259,1718191856946,-396.13811278,0.00016712,2]
[329230261,1718191856957,-500.0,0.00016712,2]
[329230263,1718191856969,-500.0,0.00016712,2]
[329230265,1718191856981,-500.0,0.00016712,2]
[329230267,1718191856992,-500.0,0.00016712,2]
[329230269,1718191857003,-500.0,0.00016712,2]
[329230271,1718191857014,-500.0,0.00016712,2]
[329230273,1718191857025,-613.72409257,0.00016712,2]
[329230274,1718191857035,-500.0,0.00016712,2]
[329230276,1718191857046,-513.56929984,0.00016712,2]
[329230278,1718191857057,-505.43272219,0.00016712,2]
[329230280,1718191857068,-500.0,0.00016712,2]
[329230282,1718191857078,-500.0,0.00016712,2]
[329230284,1718191857090,-500.0,0.00016712,2]
[329230286,1718191857101,-500.0,0.00016712,2]
[329230288,1718191857111,-500.0,0.00016712,2]
[329230291,1718191857123,-500.0,0.00016712,2]
[329230293,1718191857133,-500.0,0.00016712,2]
[329230294,1718191857145,-500.0,0.00016712,2]
[329230297,1718191857160,-500.0,0.00016712,2]
[329230298,1718191857171,-505.38485582,0.00016712,2]
[329230301,1718191857182,-500.0,0.00016712,2]
[329230303,1718191857194,-1180.1,0.00016813,2]
[329230304,1718191857205,-207.0,0.00016813,2]
[329230307,1718191857217,-854.79713606,0.00016818,2]
[329230309,1718191857229,-1180.1,0.0001697,2]
[329230310,1718191857240,-207.0,0.0001697,2]
[329230312,1718191857251,-500.0,0.00016985,2]
[329230314,1718191857262,-500.0,0.00016985,2]
[329230316,1718191857272,-2035.38,0.00016985,2]
[329230318,1718191857285,-2035.38,0.00016985,2]
[329230320,1718191857296,-500.0,0.00016985,2]
[329230322,1718191857307,-500.0,0.00016985,2]
[329230324,1718191857317,-500.0,0.00016986,2]
[329230327,1718191857333,-255.41723756,0.00016986,2]
[329230329,1718191857356,-500.0,0.00016986,2]
[329230331,1718191857388,-594.44080615,0.00016986,2]
[329230333,1718191857400,-500.0,0.00016986,2]
[329230335,1718191857413,-500.0,0.00016986,2]
[329230337,1718191857424,-500.0,0.00016986,2]
[329230339,1718191857435,-500.0,0.00016986,2]
[329230341,1718191857447,-613.1078874,0.00016986,2]
[329230343,1718191857460,-539.25,0.00016986,2]
[329230345,1718191857472,-513.26649873,0.00016986,2]
[329230347,1718191857482,-500.0,0.00016986,2]
[329230349,1718191857496,-500.0,0.00016986,2]
[329230351,1718191857508,-500.0,0.00016986,2]
[329230352,1718191857520,-500.0,0.00016986,2]
[329230354,1718191857541,-500.0,0.00016986,2]
[329230356,1718191857553,-500.0,0.00016986,2]
[329230358,1718191857566,-500.0,0.00016986,2]
[329230360,1718191857577,-500.0,0.00016986,2]
[329230362,1718191857615,-696.2,0.00016986,2]
[329230364,1718191857626,-500.0,0.00016986,2]
[329230366,1718191857637,-500.0,0.00016986,2]
[329230368,1718191857647,-500.0,0.00016986,2]
[329230370,1718191857658,-500.0,0.00016986,2]
[329230372,1718191857667,-500.0,0.00016986,2]
[329230374,1718191857678,-500.0,0.00016986,2]
[329230376,1718191857688,-500.0,0.00016986,2]
[329230378,1718191857698,-500.0,0.00016986,2]
[329230380,1718191857708,-500.0,0.00016986,2]
[329230382,1718191857719,-250.0,0.00016986,2]
[329230383,1718191857729,-500.0,0.00016986,4]
[329230386,1718191857740,-791.15,0.00016986,2]
[329230388,1718191857752,-599.80711365,0.00016986,2]
[329230390,1718191857763,-500.0,0.00016986,2]
[329230391,1718191857773,-500.0,0.00016986,2]
[329230393,1718191857786,-1958.31,0.00016986,2]
[329230396,1718191857799,-500.0,0.00016986,2]
[329230398,1718191857810,-7070.51,0.00016986,2]
[329230400,1718191857823,-500.0,0.00016986,2]
[329230401,1718191857835,-395.55217758,0.00016986,2]
[329230404,1718191857850,-500.0,0.00016986,2]
[329230405,1718191857864,-500.0,0.00016986,2]
[329230407,1718191857878,-1734.34,0.00016986,2]
[329230409,1718191857889,-500.0,0.00016986,2]
[329230411,1718191857902,-500.0,0.00016986,2]
[329230413,1718191857917,-500.0,0.00016986,2]
[329230415,1718191857928,-805.35,0.00016986,2]
[329230417,1718191857940,-802.49,0.00016986,2]
[329230419,1718191857951,-557.46,0.00016986,2]
[329230421,1718191857962,-500.0,0.00016986,2]
[329230423,1718191857973,-587.33,0.00016986,2]
[329230425,1718191857984,-500.0,0.00016986,2]
[329230427,1718191857995,-500.0,0.00016986,2]
[329230429,1718191858006,-500.0,0.00016986,2]
[329230431,1718191858017,-500.0,0.00016986,2]
[329230433,1718191858029,-500.0,0.00016986,2]
[329230435,1718191858040,-4160.92,0.00016986,2]
[329230437,1718191858052,-588.10580168,0.00016986,2]
[329230439,1718191858062,-500.0,0.00016986,2]
[329230441,1718191858073,-1287.22,0.00016986,2]
[329230443,1718191858084,-500.0,0.00016986,2]
[329230445,1718191858098,-500.0,0.00016986,2]
[329230458,1718191858238,-500.0,0.00016986,2]
[329230460,1718191858250,-18453.57,0.00016986,2]
[329230462,1718191858261,-532.86,0.00016986,2]
[329230464,1718191858272,-505.99340678,0.00016986,2]
[329230466,1718191858284,-500.0,0.00016986,2]
[329230468,1718191858295,-1006.72,0.00016986,2]
[329230469,1718191858306,-12660.69,0.00016986,2]
[329230471,1718191858318,-500.0,0.00016986,2]
[329230473,1718191858328,-404.35118187,0.00016986,2]
[329230475,1718191858339,-500.0,0.00016986,2]
[329230477,1718191858376,-3929.81,0.00016986,2]
[329230479,1718191858388,-4115.96,0.00016986,2]
[329230481,1718191858399,-500.0,0.00016986,2]
[329230483,1718191858410,-500.0,0.00016986,2]
[329230485,1718191858422,-500.0,0.00016986,2]
[329230487,1718191858433,-500.0,0.00016986,2]
[329230489,1718191858445,-500.0,0.00016986,2]
[329230491,1718191858456,-500.0,0.00016986,2]
[329230493,1718191858467,-500.0,0.00016986,2]
[329230495,1718191858479,-500.0,0.00016986,2]
[329230497,1718191858491,-500.0,0.00016986,2]
[329230499,1718191858504,-500.0,0.00016986,2]
[329230501,1718191858516,-500.0,0.00016986,2]
[329230503,1718191858527,-500.0,0.00016986,2]
[329230505,1718191858539,-500.0,0.00016986,2]
[329230507,1718191858550,-500.0,0.00016986,2]
[329230509,1718191858561,-500.0,0.00016986,2]
[329230511,1718191858572,-2200.0,0.00017,2]
[329230512,1718191858583,-1180.1,0.00017127,2]
[329230514,1718191858595,-207.0,0.00017127,2]
[329230516,1718191858607,-500.0,0.00017259,2]
[329230518,1718191858619,-2035.38,0.00017259,2]
[329230520,1718191858631,-2035.38,0.00017259,2]
[329230522,1718191858642,-500.0,0.00017259,2]
[329230524,1718191858653,-500.0,0.0001726,2]
[329230526,1718191858664,-500.0,0.0001726,2]
[329230528,1718191858675,-254.54796078,0.0001726,2]
[329230530,1718191858686,-500.0,0.0001726,2]
[329230532,1718191858697,-500.0,0.0001726,2]
[329230534,1718191858707,-539.25,0.0001726,2]
[329230536,1718191858718,-500.0,0.0001726,2]
[329230538,1718191858730,-166.1600623,0.0001726,2]
[329230539,1718191858743,-500.0,0.0001726,2]
[329230541,1718191858754,-500.0,0.0001726,2]
[329230543,1718191858766,-508.594545,0.0001726,2]
[329230545,1718191858777,-500.0,0.0001726,2]
[329230547,1718191858788,-500.0,0.0001726,2]
[329230549,1718191858800,-500.0,0.0001726,2]
[329230551,1718191858811,-696.2,0.0001726,2]
[329230553,1718191858822,-500.0,0.0001726,2]
[329230555,1718191858833,-500.0,0.0001726,2]
[329230557,1718191858845,-500.0,0.0001726,2]
[329230559,1718191858856,-500.0,0.0001726,2]
[329230561,1718191858867,-324.57038224,0.0001726,2]
[329230563,1718191858878,-500.0,0.0001726,2]
[329230565,1718191858889,-206.84965784,0.0001726,2]
[329230566,1718191858901,-250.0,0.0001726,2]
[329230568,1718191858913,-500.0,0.0001726,4]
[329230570,1718191858924,-791.15,0.0001726,2]
[329230572,1718191858935,-500.0,0.0001726,2]
[329230574,1718191858946,-516.53957628,0.0001726,2]
[329230576,1718191858960,-1958.31,0.0001726,2]
[329230578,1718191858973,-500.0,0.0001726,2]
[329230580,1718191858989,-7070.51,0.0001726,2]
[329230581,1718191859001,-500.0,0.0001726,2]
[329230583,1718191859013,-500.0,0.0001726,2]
[329230585,1718191859026,-500.0,0.0001726,2]
[329230587,1718191859037,-1734.34,0.0001726,2]
[329230589,1718191859049,-500.0,0.0001726,2]
[329230591,1718191859060,-500.0,0.0001726,2]
[329230593,1718191859071,-500.0,0.0001726,2]
[329230595,1718191859082,-805.35,0.0001726,2]
[329230597,1718191859094,-802.49,0.0001726,2]
[329230599,1718191859106,-500.0,0.0001726,2]
[329230600,1718191859120,-587.33,0.0001726,2]
[329230602,1718191859131,-500.0,0.0001726,2]
[329230604,1718191859142,-500.0,0.0001726,2]
[329230606,1718191859156,-500.0,0.0001726,2]
[329230608,1718191859167,-500.0,0.0001726,2]
[329230610,1718191859180,-4160.92,0.0001726,2]
[329230612,1718191859191,-500.0,0.0001726,2]
[329230614,1718191859203,-1287.22,0.0001726,2]
[329230615,1718191859215,-534.73163504,0.0001726,2]
[329230617,1718191859227,-500.0,0.0001726,2]
[329230619,1718191859240,-18453.57,0.0001726,2]
[329230621,1718191859252,-532.86,0.0001726,2]
[329230623,1718191859262,-500.0,0.0001726,2]
[329230625,1718191859273,-1006.72,0.0001726,2]
[329230627,1718191859284,-12660.69,0.0001726,2]
[329230629,1718191859296,-511.80827517,0.0001726,2]
[329230631,1718191859308,-512.43162702,0.0001726,2]
[329230633,1718191859320,-3929.81,0.0001726,2]
[329230635,1718191859332,-4115.96,0.0001726,2]
[329230637,1718191859345,-500.0,0.0001726,2]
[329230639,1718191859378,-500.0,0.0001726,2]
[329230641,1718191859390,-500.0,0.0001726,2]
[329230643,1718191859401,-500.0,0.0001726,2]
[329230645,1718191859413,-500.0,0.0001726,2]
[329230646,1718191859425,-619.93,0.0001726,2]
[329230648,1718191859436,-500.0,0.0001726,2]
[329230650,1718191859448,-500.0,0.0001726,2]
[329230652,1718191859461,-500.0,0.0001726,2]
[329230654,1718191859472,-500.0,0.0001726,2]
[329230656,1718191859486,-500.0,0.0001726,2]
[329230658,1718191859497,-500.0,0.0001726,2]
[329230660,1718191859509,-1180.1,0.00017283,2]
[329230662,1718191859521,-207.0,0.00017283,2]
[329230664,1718191859532,-854.79713606,0.00017297,2]
[329230666,1718191859545,-1180.1,0.0001744,2]
[329230668,1718191859556,-207.0,0.0001744,2]
[329230670,1718191859570,-500.0,0.00017533,2]
[329230672,1718191859581,-290.43892282,0.00017533,2]
[329230674,1718191859594,-2035.38,0.00017533,2]
[329230676,1718191859607,-500.0,0.00017533,2]
[329230678,1718191859618,-500.0,0.00017533,2]
[329230680,1718191859629,-160.38,0.00017534,2]
[329230682,1718191859639,-500.0,0.00017534,2]
[329230683,1718191859651,-500.0,0.00017534,2]
[329230685,1718191859662,-500.0,0.00017534,2]
[329230687,1718191859673,-539.25,0.00017534,2]
[329230689,1718191859683,-500.0,0.00017534,2]
[329230691,1718191859696,-500.0,0.00017534,2]
[329230693,1718191859707,-500.0,0.00017534,2]
[329230695,1718191859719,-500.0,0.00017534,2]
[329230696,1718191859731,-500.0,0.00017534,2]
[329230698,1718191859744,-500.0,0.00017534,2]
[329230700,1718191859757,-696.2,0.00017534,2]
[329230702,1718191859768,-500.0,0.00017534,2]
[329230703,1718191859780,-500.0,0.00017534,2]
[329230705,1718191859791,-500.0,0.00017534,2]
[329230707,1718191859803,-500.0,0.00017534,2]
[329230709,1718191859815,-500.0,0.00017534,2]
[329230711,1718191859829,-250.0,0.00017534,2]
[329230713,1718191859840,-500.0,0.00017534,4]
[329230714,1718191859852,-791.15,0.00017534,2]
[329230717,1718191859872,-500.0,0.00017534,2]
[329230718,1718191859887,-1958.31,0.00017534,2]
[329230720,1718191859899,-500.0,0.00017534,2]
[329230722,1718191859912,-7070.51,0.00017534,2]
[329230724,1718191859924,-500.0,0.00017534,2]
[329230726,1718191859941,-500.0,0.00017534,2]
[329230728,1718191859955,-1734.34,0.00017534,2]
[329230729,1718191859969,-500.0,0.00017534,2]
[329230731,1718191859981,-500.0,0.00017534,2]
[329230733,1718191859992,-500.0,0.00017534,2]
[329230735,1718191860005,-805.35,0.00017534,2]
[329230737,1718191860025,-802.49,0.00017534,2]
[329230739,1718191860046,-500.0,0.00017534,2]
[329230741,1718191860100,-587.33,0.00017534,2]
[329230744,1718191860121,-500.0,0.00017534,2]
[329230746,1718191860154,-500.0,0.00017534,2]
[329230748,1718191860181,-500.0,0.00017534,2]
[329230750,1718191860196,-4160.92,0.00017534,2]
[329230752,1718191860214,-500.0,0.00017534,2]
[329230753,1718191860233,-1287.22,0.00017534,2]
[329230755,1718191860247,-500.0,0.00017534,2]
[329230756,1718191860259,-18453.57,0.00017534,2]
[329230759,1718191860276,-532.86,0.00017534,2]